[Event "Late-Titled-Tuesday-Blitz-March-19-2024"]
[Site "Chess.com"]
[Date "2024.03.19"]
[Round "2"]
[White "bascheyaro"]
[Black "joksijoksi"]
[Result "1-0"]
[WhiteElo "2785"]
[BlackElo "2571"]
[TimeControl "180+1"]
[EndTime "14:17:15 PDT"]
[Termination "bascheyaro won by resignation"]

1. d4 {[%clk 0:03:00.9]} 1... d5 {[%clk 0:02:58.8]} 2. Nf3 {[%clk 0:03:01]} 2...
Nf6 {[%clk 0:02:58.4]} 3. Bf4 {[%clk 0:03:01.2]} 3... c5 {[%clk 0:02:58.1]} 4.
e3 {[%clk 0:03:01.4]} 4... Nc6 {[%clk 0:02:58.7]} 5. Be2 {[%clk 0:03:00.6]} 5...
cxd4 {[%clk 0:02:58.3]} 6. exd4 {[%clk 0:03:00.9]} 6... Bf5 {[%clk 0:02:59]} 7.
O-O {[%clk 0:03:00.7]} 7... e6 {[%clk 0:02:59.5]} 8. c3 {[%clk 0:03:00.6]} 8...
h6 {[%clk 0:02:59.2]} 9. Nbd2 {[%clk 0:03:00.5]} 9... Bd6 {[%clk 0:02:55.7]} 10.
Bxd6 {[%clk 0:02:59.9]} 10... Qxd6 {[%clk 0:02:56.6]} 11. Re1 {[%clk 0:02:59.9]}
11... O-O {[%clk 0:02:56.6]} 12. Bb5 {[%clk 0:02:57.4]} 12... Ne4 {[%clk
0:02:51.7]} 13. Nxe4 {[%clk 0:02:53]} 13... Bxe4 {[%clk 0:02:49]} 14. Nd2 {[%clk
0:02:49.1]} 14... Bg6 {[%clk 0:02:47.7]} 15. a4 {[%clk 0:02:48.6]} 15... Rac8
{[%clk 0:02:44.7]} 16. a5 {[%clk 0:02:44.7]} 16... a6 {[%clk 0:02:43.8]} 17.
Bxc6 {[%clk 0:02:44.7]} 17... Qxc6 {[%clk 0:02:43]} 18. Nb3 {[%clk 0:02:43.8]}
18... Qb5 {[%clk 0:02:35.6]} 19. Re2 {[%clk 0:02:43.7]} 19... Bh5 {[%clk
0:02:33.1]} 20. f3 {[%clk 0:02:43.7]} 20... Bg6 {[%clk 0:02:33.8]} 21. Nc5
{[%clk 0:02:41.2]} 21... Rfd8 {[%clk 0:02:31.9]} 22. b4 {[%clk 0:02:40.4]} 22...
Bf5 {[%clk 0:02:13.7]} 23. Qd2 {[%clk 0:02:39.3]} 23... Rc7 {[%clk 0:02:06.3]}
24. Re5 {[%clk 0:02:36.4]} 24... Bg6 {[%clk 0:02:04.7]} 25. h4 {[%clk
0:02:36.1]} 25... Qc4 {[%clk 0:02:01.4]} 26. h5 {[%clk 0:02:27.1]} 26... Bh7
{[%clk 0:02:00.9]} 27. Rae1 {[%clk 0:02:26.4]} 27... Qb5 {[%clk 0:01:52.1]} 28.
g4 {[%clk 0:02:25.2]} 28... b6 {[%clk 0:01:48.4]} 29. axb6 {[%clk 0:02:24.9]}
29... Qxb6 {[%clk 0:01:48.5]} 30. g5 {[%clk 0:02:25.2]} 30... hxg5 {[%clk
0:01:46.1]} 31. Rxg5 {[%clk 0:02:22.1]} 31... a5 {[%clk 0:01:41.3]} 32. Qg2
{[%clk 0:02:17]} 32... f6 {[%clk 0:01:37.2]} 33. Rxe6 {[%clk 0:02:13.6]} 33...
Qb8 {[%clk 0:01:22.1]} 34. Rxf6 {[%clk 0:02:08.4]} 34... axb4 {[%clk 0:01:22.1]}
35. Ne6 {[%clk 0:02:07.8]} 35... Rdd7 {[%clk 0:01:08.7]} 36. Nxc7 {[%clk
0:01:48.3]} 36... Rxc7 {[%clk 0:00:58.6]} 37. h6 {[%clk 0:01:44.8]} 37... Qb7
{[%clk 0:00:25.6]} 38. Rxg7+ {[%clk 0:01:43.4]} 38... Rxg7 {[%clk 0:00:25.4]}
39. Qxg7+ {[%clk 0:01:44]} 39... Qxg7+ {[%clk 0:00:25.3]} 40. hxg7 {[%clk
0:01:44.9]} 40... bxc3 {[%clk 0:00:20.7]} 41. Rc6 {[%clk 0:01:44.7]} 41... c2
{[%clk 0:00:21.1]} 42. Rc7 {[%clk 0:01:44.6]} 42... Bd3 {[%clk 0:00:20.2]} 43.
Rc3 {[%clk 0:01:40.8]} 43... Bg6 {[%clk 0:00:20.2]} 44. Kf2 {[%clk 0:01:40.6]}
44... Kxg7 {[%clk 0:00:20.6]} 45. Ke3 {[%clk 0:01:41]} 45... Kf6 {[%clk
0:00:20.6]} 46. Kd2 {[%clk 0:01:39]} 46... Kg5 {[%clk 0:00:20.7]} 47. Rc6 {[%clk
0:01:34.1]} 47... Bf5 {[%clk 0:00:20.1]} 48. Rd6 {[%clk 0:01:33.2]} 48... Kf4
{[%clk 0:00:20]} 49. Rf6 {[%clk 0:01:33.5]} 49... Kg5 {[%clk 0:00:19.5]} 50. Rf8
{[%clk 0:01:32.5]} 50... Bg6 {[%clk 0:00:19.4]} 51. Rg8 {[%clk 0:01:26.8]} 51...
Kf5 {[%clk 0:00:19.1]} 52. Kxc2 {[%clk 0:01:25.9]} 1-0

[Event "Late-Titled-Tuesday-Blitz-March-19-2024"]
[Site "Chess.com"]
[Date "2024.03.19"]
[Round "2"]
[White "chess_blitz00"]
[Black "AryanTari"]
[Result "0-1"]
[WhiteElo "2439"]
[BlackElo "3010"]
[TimeControl "180+1"]
[EndTime "14:17:18 PDT"]
[Termination "AryanTari won on time"]

1. d4 {[%clk 0:03:00.9]} 1... a6 {[%clk 0:03:00.9]} 2. e4 {[%clk 0:03:00.7]}
2... e6 {[%clk 0:03:01.4]} 3. Nc3 {[%clk 0:02:58.7]} 3... d5 {[%clk 0:03:02]} 4.
exd5 {[%clk 0:02:43.5]} 4... exd5 {[%clk 0:03:02.9]} 5. Bd3 {[%clk 0:02:44]}
5... Nf6 {[%clk 0:03:02.7]} 6. h3 {[%clk 0:02:35.5]} 6... c5 {[%clk 0:02:58.6]}
7. dxc5 {[%clk 0:02:35]} 7... Bxc5 {[%clk 0:02:59.5]} 8. Nf3 {[%clk 0:02:32.3]}
8... O-O {[%clk 0:02:58.6]} 9. O-O {[%clk 0:02:32.8]} 9... Nc6 {[%clk 0:02:53]}
10. Bg5 {[%clk 0:02:32.1]} 10... Be6 {[%clk 0:02:53]} 11. Ne2 {[%clk 0:02:26.9]}
11... h6 {[%clk 0:02:52.4]} 12. Bh4 {[%clk 0:02:26]} 12... g5 {[%clk 0:02:52.1]}
13. Nxg5 {[%clk 0:02:10.2]} 13... hxg5 {[%clk 0:02:51.8]} 14. Bxg5 {[%clk
0:02:11.1]} 14... Be7 {[%clk 0:02:50.6]} 15. Nf4 {[%clk 0:01:49.3]} 15... Ne4
{[%clk 0:02:38.2]} 16. Bh6 {[%clk 0:01:41.9]} 16... Qd6 {[%clk 0:02:08]} 17.
Bxe4 {[%clk 0:00:51.9]} 17... dxe4 {[%clk 0:02:05.8]} 18. Qxd6 {[%clk
0:00:51.9]} 18... Bxd6 {[%clk 0:02:05.3]} 19. Nxe6 {[%clk 0:00:51.8]} 19... fxe6
{[%clk 0:02:03.9]} 20. Bxf8 {[%clk 0:00:52.4]} 20... Rxf8 {[%clk 0:02:03.2]} 21.
Rae1 {[%clk 0:00:50.8]} 21... e5 {[%clk 0:01:52.1]} 22. Rxe4 {[%clk 0:00:50.5]}
22... Bc5 {[%clk 0:01:52.1]} 23. c3 {[%clk 0:00:47.8]} 23... Rd8 {[%clk
0:01:50.5]} 24. Rfe1 {[%clk 0:00:41.9]} 24... Rf8 {[%clk 0:01:46.9]} 25. R1e2
{[%clk 0:00:38.6]} 25... Kf7 {[%clk 0:01:46]} 26. g3 {[%clk 0:00:35.8]} 26...
Kf6 {[%clk 0:01:45.1]} 27. Kg2 {[%clk 0:00:36.3]} 27... Rg8 {[%clk 0:01:37]} 28.
h4 {[%clk 0:00:16.2]} 28... b5 {[%clk 0:01:36.4]} 29. a4 {[%clk 0:00:12.5]}
29... Bd6 {[%clk 0:01:34.5]} 30. b3 {[%clk 0:00:11.6]} 30... Ne7 {[%clk
0:01:34.2]} 31. axb5 {[%clk 0:00:11.3]} 31... axb5 {[%clk 0:01:35.1]} 32. c4
{[%clk 0:00:10.3]} 32... b4 {[%clk 0:01:35.3]} 33. c5 {[%clk 0:00:10]} 33... Bc7
{[%clk 0:01:34.3]} 34. Rxb4 {[%clk 0:00:09.2]} 34... Nd5 {[%clk 0:01:35]} 35.
Rc4 {[%clk 0:00:08.6]} 35... Nf4+ {[%clk 0:01:35.2]} 36. Rxf4+ {[%clk
0:00:04.9]} 36... exf4 {[%clk 0:01:36.1]} 37. b4 {[%clk 0:00:02.6]} 37... fxg3
{[%clk 0:01:33.7]} 38. fxg3 {[%clk 0:00:03.5]} 38... Rxg3+ {[%clk 0:01:33.9]}
39. Kf1 {[%clk 0:00:04.2]} 39... Rg4 {[%clk 0:01:34.1]} 40. b5 {[%clk
0:00:02.9]} 40... Be5 {[%clk 0:01:33.2]} 41. b6 {[%clk 0:00:02.7]} 41... Bd4
{[%clk 0:01:33.9]} 42. Rg2 {[%clk 0:00:02.3]} 42... Rf4+ {[%clk 0:01:30.5]} 43.
Ke2 {[%clk 0:00:02.8]} 43... Bxc5 {[%clk 0:01:31.2]} 44. b7 {[%clk 0:00:03.4]}
44... Rb4 {[%clk 0:01:31.5]} 45. h5 {[%clk 0:00:02.4]} 45... Rxb7 {[%clk
0:01:31.5]} 46. Kf3 {[%clk 0:00:03.1]} 46... Kf5 {[%clk 0:01:30.6]} 47. Ke2
{[%clk 0:00:01.2]} 47... Kf4 {[%clk 0:01:29.5]} 0-1

[Event "Late-Titled-Tuesday-Blitz-March-19-2024"]
[Site "Chess.com"]
[Date "2024.03.19"]
[Round "2"]
[White "Rawnsdale"]
[Black "HanSchut"]
[Result "0-1"]
[WhiteElo "2519"]
[BlackElo "2321"]
[TimeControl "180+1"]
[EndTime "14:17:20 PDT"]
[Termination "HanSchut won by resignation"]

1. e4 {[%clk 0:03:00.9]} 1... c5 {[%clk 0:02:59.5]} 2. Nf3 {[%clk 0:03:01]} 2...
d6 {[%clk 0:02:56.8]} 3. d4 {[%clk 0:03:00]} 3... cxd4 {[%clk 0:02:57.7]} 4.
Nxd4 {[%clk 0:03:00.7]} 4... Nf6 {[%clk 0:02:58.2]} 5. Nc3 {[%clk 0:03:00.7]}
5... g6 {[%clk 0:02:58.9]} 6. Rg1 {[%clk 0:02:58.9]} 6... Bg7 {[%clk 0:02:58]}
7. g4 {[%clk 0:02:59.1]} 7... d5 {[%clk 0:02:57.5]} 8. e5 {[%clk 0:02:53.8]}
8... Ne4 {[%clk 0:02:55.5]} 9. Bb5+ {[%clk 0:02:39]} 9... Bd7 {[%clk 0:02:44.8]}
10. e6 {[%clk 0:02:38.5]} 10... Bxb5 {[%clk 0:02:36.7]} 11. exf7+ {[%clk
0:02:23.7]} 11... Kxf7 {[%clk 0:02:36.5]} 12. Ndxb5 {[%clk 0:02:22.7]} 12...
Nxc3 {[%clk 0:02:25]} 13. Nxc3 {[%clk 0:02:22]} 13... e6 {[%clk 0:02:22]} 14.
Qf3+ {[%clk 0:02:05.3]} 14... Qf6 {[%clk 0:02:18]} 15. Qxf6+ {[%clk 0:01:57.8]}
15... Bxf6 {[%clk 0:02:18.9]} 16. Bd2 {[%clk 0:01:58.1]} 16... Nc6 {[%clk
0:02:13.5]} 17. O-O-O {[%clk 0:01:57]} 17... Nd4 {[%clk 0:02:08]} 18. Kb1 {[%clk
0:01:51.3]} 18... Nf3 {[%clk 0:02:05.9]} 19. Rg3 {[%clk 0:01:51.1]} 19... Nxd2+
{[%clk 0:02:06]} 20. Rxd2 {[%clk 0:01:50.7]} 20... Bxc3 {[%clk 0:02:03.2]} 21.
Rxc3 {[%clk 0:01:51.6]} 21... Rhc8 {[%clk 0:02:02.4]} 22. Rf3+ {[%clk 0:01:49]}
22... Ke7 {[%clk 0:02:00.1]} 23. Re2 {[%clk 0:01:47.6]} 23... Rc6 {[%clk
0:01:54.7]} 24. c3 {[%clk 0:01:44.3]} 24... Rf8 {[%clk 0:01:53.4]} 25. Rxf8
{[%clk 0:01:41.6]} 25... Kxf8 {[%clk 0:01:54.3]} 26. Kc2 {[%clk 0:01:41.5]}
26... Kf7 {[%clk 0:01:54.6]} 27. Kd3 {[%clk 0:01:41.3]} 27... Kf6 {[%clk
0:01:54.3]} 28. h3 {[%clk 0:01:41.6]} 28... e5 {[%clk 0:01:54.6]} 29. f3 {[%clk
0:01:35.7]} 29... Rc4 {[%clk 0:01:45]} 30. Ke3 {[%clk 0:01:34.8]} 30... b5
{[%clk 0:01:41.3]} 31. Rd2 {[%clk 0:01:34.7]} 31... Ke6 {[%clk 0:01:40.4]} 32.
h4 {[%clk 0:01:33.4]} 32... b4 {[%clk 0:01:40.1]} 33. cxb4 {[%clk 0:01:32.2]}
33... Rxb4 {[%clk 0:01:41]} 34. b3 {[%clk 0:01:32.5]} 34... a5 {[%clk
0:01:40.8]} 35. Rc2 {[%clk 0:01:32.2]} 35... Kd6 {[%clk 0:01:37.1]} 36. Rc8
{[%clk 0:01:30.5]} 36... a4 {[%clk 0:01:37.6]} 37. bxa4 {[%clk 0:01:24.3]} 37...
Rxa4 {[%clk 0:01:37.8]} 38. Rh8 {[%clk 0:01:25.2]} 38... Ra3+ {[%clk 0:01:36.6]}
39. Kf2 {[%clk 0:01:20]} 39... Rxa2+ {[%clk 0:01:36.9]} 40. Kg3 {[%clk
0:01:18.9]} 40... Ra7 {[%clk 0:01:37.5]} 41. Rd8+ {[%clk 0:01:11.7]} 41... Rd7
{[%clk 0:01:36.6]} 42. Ra8 {[%clk 0:01:10.9]} 42... Kc5 {[%clk 0:01:32.9]} 43.
Kf2 {[%clk 0:01:10.8]} 43... Kc4 {[%clk 0:01:30.5]} 44. Ke2 {[%clk 0:01:09]}
44... Rb7 {[%clk 0:01:25.1]} 45. Ra4+ {[%clk 0:01:08.8]} 45... Rb4 {[%clk
0:01:24.5]} 46. Ra7 {[%clk 0:01:07.6]} 46... Rb2+ {[%clk 0:01:24.7]} 47. Ke3
{[%clk 0:01:06.8]} 47... Rb3+ {[%clk 0:01:23.6]} 48. Kf2 {[%clk 0:01:06.4]}
48... d4 {[%clk 0:01:09.8]} 49. Rxh7 {[%clk 0:01:03.8]} 49... Rb2+ {[%clk
0:01:10.2]} 50. Ke1 {[%clk 0:01:03.4]} 50... d3 {[%clk 0:01:10.4]} 51. Rc7+
{[%clk 0:01:03.5]} 51... Kd4 {[%clk 0:01:10.7]} 52. h5 {[%clk 0:01:02.1]} 52...
gxh5 {[%clk 0:01:10.6]} 53. gxh5 {[%clk 0:01:03]} 53... Ke3 {[%clk 0:01:11]} 54.
Kd1 {[%clk 0:00:43.6]} 54... Rb1+ {[%clk 0:01:06.3]} 55. Rc1 {[%clk 0:00:43]}
55... Rxc1+ {[%clk 0:01:06.4]} 56. Kxc1 {[%clk 0:00:43.9]} 56... Ke2 {[%clk
0:01:07]} 57. h6 {[%clk 0:00:43.9]} 57... d2+ {[%clk 0:01:06.8]} 58. Kb2 {[%clk
0:00:43.8]} 58... d1=Q {[%clk 0:01:07.1]} 59. h7 {[%clk 0:00:44.7]} 59... Qh1
{[%clk 0:01:07.2]} 0-1

[Event "Late-Titled-Tuesday-Blitz-March-19-2024"]
[Site "Chess.com"]
[Date "2024.03.19"]
[Round "2"]
[White "dawid498"]
[Black "MagnusCarlsen"]
[Result "0-1"]
[WhiteElo "2693"]
[BlackElo "3256"]
[TimeControl "180+1"]
[EndTime "14:17:22 PDT"]
[Termination "MagnusCarlsen won by resignation"]

1. e4 {[%clk 0:03:00.9]} 1... c5 {[%clk 0:02:44.3]} 2. Nf3 {[%clk 0:03:00.3]}
2... Nc6 {[%clk 0:02:44]} 3. d4 {[%clk 0:03:00.6]} 3... cxd4 {[%clk 0:02:44.2]}
4. Nxd4 {[%clk 0:03:01.5]} 4... Nf6 {[%clk 0:02:44.7]} 5. Nc3 {[%clk 0:03:01.7]}
5... h5 {[%clk 0:02:45]} 6. Nb3 {[%clk 0:02:53.3]} 6... g6 {[%clk 0:02:41.8]} 7.
Be2 {[%clk 0:02:51.6]} 7... Bg7 {[%clk 0:02:41.7]} 8. O-O {[%clk 0:02:52.3]}
8... O-O {[%clk 0:02:40.8]} 9. Re1 {[%clk 0:02:52.7]} 9... d6 {[%clk 0:02:35.3]}
10. Bf1 {[%clk 0:02:50.8]} 10... Bg4 {[%clk 0:02:35]} 11. f3 {[%clk 0:02:44.8]}
11... Be6 {[%clk 0:02:34.4]} 12. Nd5 {[%clk 0:02:33.4]} 12... Rc8 {[%clk
0:02:26.7]} 13. c3 {[%clk 0:02:30.2]} 13... b5 {[%clk 0:02:20.8]} 14. Bg5 {[%clk
0:02:17.7]} 14... Bxd5 {[%clk 0:02:15.8]} 15. exd5 {[%clk 0:02:18.6]} 15... Ne5
{[%clk 0:02:16.1]} 16. Kh1 {[%clk 0:02:09.9]} 16... Qb6 {[%clk 0:02:12.8]} 17.
a4 {[%clk 0:01:22.2]} 17... b4 {[%clk 0:02:11.6]} 18. c4 {[%clk 0:00:45.6]}
18... Nxc4 {[%clk 0:02:10.7]} 19. Bxc4 {[%clk 0:00:45.5]} 19... Rxc4 {[%clk
0:02:10.4]} 20. Rxe7 {[%clk 0:00:46.2]} 20... Rfc8 {[%clk 0:01:59.9]} 21. Be3
{[%clk 0:00:35]} 21... Qd8 {[%clk 0:01:55]} 22. Rxa7 {[%clk 0:00:35.1]} 22...
Qe8 {[%clk 0:01:54.9]} 23. Bg1 {[%clk 0:00:25.6]} 23... Qe5 {[%clk 0:01:54.5]}
24. Na5 {[%clk 0:00:19.3]} 24... Rc2 {[%clk 0:01:40.1]} 25. Nc6 {[%clk
0:00:19.7]} 25... Qxb2 {[%clk 0:01:36.8]} 26. Ne7+ {[%clk 0:00:18]} 26... Kh7
{[%clk 0:01:05.2]} 27. Nxc8 {[%clk 0:00:18.9]} 27... Rxc8 {[%clk 0:01:02.6]} 28.
Rb1 {[%clk 0:00:19.3]} 28... Qe5 {[%clk 0:01:00.2]} 29. Rxf7 {[%clk 0:00:17.5]}
29... Kg8 {[%clk 0:01:00.2]} 30. Rxg7+ {[%clk 0:00:15.9]} 30... Kxg7 {[%clk
0:01:00.1]} 31. Bd4 {[%clk 0:00:16.8]} 31... Qf4 {[%clk 0:00:55.7]} 32. Bxf6+
{[%clk 0:00:14.5]} 32... Kxf6 {[%clk 0:00:54.5]} 33. Qe2 {[%clk 0:00:13.8]}
33... Rc1+ {[%clk 0:00:53.6]} 0-1

[Event "Late-Titled-Tuesday-Blitz-March-19-2024"]
[Site "Chess.com"]
[Date "2024.03.19"]
[Round "2"]
[White "DrCeltic"]
[Black "Evgeny81"]
[Result "0-1"]
[WhiteElo "2571"]
[BlackElo "2789"]
[TimeControl "180+1"]
[EndTime "14:17:25 PDT"]
[Termination "Evgeny81 won on time"]

1. e4 {[%clk 0:02:59.8]} 1... c5 {[%clk 0:02:59.5]} 2. Nf3 {[%clk 0:02:59.8]}
2... g6 {[%clk 0:02:59.6]} 3. d4 {[%clk 0:02:40]} 3... Bg7 {[%clk 0:02:59.9]} 4.
Nc3 {[%clk 0:02:39.9]} 4... cxd4 {[%clk 0:02:59.6]} 5. Nxd4 {[%clk 0:02:40.1]}
5... Nc6 {[%clk 0:03:00.2]} 6. Be3 {[%clk 0:02:40.4]} 6... d6 {[%clk 0:02:58.8]}
7. Bc4 {[%clk 0:02:40.4]} 7... Nf6 {[%clk 0:02:57.5]} 8. h3 {[%clk 0:02:40.6]}
8... Bd7 {[%clk 0:02:55.1]} 9. Bb3 {[%clk 0:02:40.4]} 9... Rc8 {[%clk
0:02:55.1]} 10. O-O {[%clk 0:02:40.7]} 10... O-O {[%clk 0:02:54.3]} 11. Re1
{[%clk 0:02:40.7]} 11... Na5 {[%clk 0:02:53]} 12. Bg5 {[%clk 0:02:40.6]} 12...
Re8 {[%clk 0:02:50.8]} 13. Qd3 {[%clk 0:02:35.6]} 13... a6 {[%clk 0:02:47.5]}
14. Rad1 {[%clk 0:02:35.4]} 14... b5 {[%clk 0:02:43.9]} 15. Nf3 {[%clk
0:02:11.5]} 15... Nc4 {[%clk 0:02:39.4]} 16. Bxc4 {[%clk 0:02:10.4]} 16... bxc4
{[%clk 0:02:39]} 17. Qd2 {[%clk 0:02:06.4]} 17... Bc6 {[%clk 0:02:33.3]} 18. e5
{[%clk 0:02:03.2]} 18... Bxf3 {[%clk 0:02:26.9]} 19. gxf3 {[%clk 0:01:38.4]}
19... dxe5 {[%clk 0:02:21.6]} 20. Qxd8 {[%clk 0:01:36.1]} 20... Rcxd8 {[%clk
0:02:22.1]} 21. Rxd8 {[%clk 0:01:36.9]} 21... Rxd8 {[%clk 0:02:22.4]} 22. Rxe5
{[%clk 0:01:37.6]} 22... h6 {[%clk 0:02:05.6]} 23. Bh4 {[%clk 0:01:30.4]} 23...
g5 {[%clk 0:02:01.1]} 24. Bg3 {[%clk 0:01:30.1]} 24... Rd2 {[%clk 0:01:48.9]}
25. Rxe7 {[%clk 0:01:17.3]} 25... Rxc2 {[%clk 0:01:48.4]} 26. Rb7 {[%clk
0:01:17.3]} 26... Nh5 {[%clk 0:01:43.9]} 27. Na4 {[%clk 0:00:26]} 27... Bd4
{[%clk 0:01:38.3]} 28. Bd6 {[%clk 0:00:23.7]} 28... Bxf2+ {[%clk 0:01:33.3]} 29.
Kf1 {[%clk 0:00:22.3]} 29... Bd4 {[%clk 0:01:25.5]} 30. Rb8+ {[%clk 0:00:14.3]}
30... Kh7 {[%clk 0:01:23.9]} 31. Rc8 {[%clk 0:00:10.9]} 31... Kg6 {[%clk
0:01:13.1]} 32. Rc6 {[%clk 0:00:10]} 32... f6 {[%clk 0:01:12.7]} 33. Rxa6 {[%clk
0:00:08.4]} 33... Rf2+ {[%clk 0:01:11.9]} 34. Ke1 {[%clk 0:00:08.2]} 34... Rxf3
{[%clk 0:01:12.8]} 35. Rc6 {[%clk 0:00:06.6]} 35... Rxh3 {[%clk 0:01:06]} 36.
Rxc4 {[%clk 0:00:06.7]} 36... Be3 {[%clk 0:01:04.1]} 37. b4 {[%clk 0:00:03.5]}
37... Nf4 {[%clk 0:01:04.2]} 38. Bxf4 {[%clk 0:00:03.2]} 38... gxf4 {[%clk
0:01:04.1]} 0-1

[Event "Late-Titled-Tuesday-Blitz-March-19-2024"]
[Site "Chess.com"]
[Date "2024.03.19"]
[Round "2"]
[White "LangesNasenhaar"]
[Black "Iuckyducky"]
[Result "1-0"]
[WhiteElo "2537"]
[BlackElo "2306"]
[TimeControl "180+1"]
[EndTime "14:17:25 PDT"]
[Termination "LangesNasenhaar won by checkmate"]

1. d4 {[%clk 0:03:00.9]} 1... Nf6 {[%clk 0:02:59.2]} 2. Nf3 {[%clk 0:03:01.5]}
2... e6 {[%clk 0:02:59.5]} 3. g3 {[%clk 0:03:01]} 3... b6 {[%clk 0:03:00]} 4.
Bg2 {[%clk 0:03:01.7]} 4... Bb7 {[%clk 0:03:00.9]} 5. O-O {[%clk 0:03:02]} 5...
Be7 {[%clk 0:03:01.5]} 6. c4 {[%clk 0:03:02.7]} 6... O-O {[%clk 0:03:02.1]} 7.
d5 {[%clk 0:03:03.5]} 7... exd5 {[%clk 0:03:02]} 8. Nh4 {[%clk 0:03:03.7]} 8...
c6 {[%clk 0:03:00.8]} 9. cxd5 {[%clk 0:03:01.4]} 9... Nxd5 {[%clk 0:03:01.7]}
10. Nf5 {[%clk 0:03:01.6]} 10... Nc7 {[%clk 0:02:34]} 11. e4 {[%clk 0:02:53.3]}
11... d5 {[%clk 0:02:33.7]} 12. Nc3 {[%clk 0:02:48.8]} 12... Bf6 {[%clk
0:02:27]} 13. Qg4 {[%clk 0:02:34.5]} 13... Bc8 {[%clk 0:02:19.2]} 14. exd5
{[%clk 0:02:29.4]} 14... cxd5 {[%clk 0:02:19.1]} 15. Bf4 {[%clk 0:02:10.2]}
15... Nba6 {[%clk 0:01:32.6]} 16. Rad1 {[%clk 0:01:58.2]} 16... Bxc3 {[%clk
0:01:18.4]} 17. bxc3 {[%clk 0:01:56.1]} 17... Qf6 {[%clk 0:01:19]} 18. Bh3
{[%clk 0:01:42.3]} 18... Kh8 {[%clk 0:01:11.9]} 19. Bg5 {[%clk 0:01:35.9]} 19...
Qxc3 {[%clk 0:00:38]} 20. Rc1 {[%clk 0:01:09.2]} 20... Qb2 {[%clk 0:00:16]} 21.
Qf3 {[%clk 0:00:41.8]} 21... Ne6 {[%clk 0:00:14.8]} 22. Be7 {[%clk 0:00:37.6]}
22... Re8 {[%clk 0:00:09.7]} 23. Ba3 {[%clk 0:00:34.2]} 23... Qf6 {[%clk
0:00:04.7]} 24. Qe2 {[%clk 0:00:21.5]} 24... Ng5 {[%clk 0:00:04.3]} 25. Qxe8#
{[%clk 0:00:20.8]} 1-0

[Event "Late-Titled-Tuesday-Blitz-March-19-2024"]
[Site "Chess.com"]
[Date "2024.03.19"]
[Round "2"]
[White "Zampronha1971"]
[Black "malakismayil"]
[Result "0-1"]
[WhiteElo "2294"]
[BlackElo "2528"]
[TimeControl "180+1"]
[EndTime "14:17:26 PDT"]
[Termination "malakismayil won on time"]

1. e4 {[%clk 0:03:00.9]} 1... e5 {[%clk 0:02:59.7]} 2. Nf3 {[%clk 0:03:00.9]}
2... Nc6 {[%clk 0:03:00.2]} 3. d4 {[%clk 0:03:01.7]} 3... exd4 {[%clk
0:02:59.7]} 4. Nxd4 {[%clk 0:03:02.6]} 4... Bc5 {[%clk 0:02:59.7]} 5. Be3 {[%clk
0:03:01.6]} 5... Qf6 {[%clk 0:02:59]} 6. c3 {[%clk 0:03:02.2]} 6... Nge7 {[%clk
0:02:57.6]} 7. Bc4 {[%clk 0:03:00.4]} 7... b6 {[%clk 0:02:56.7]} 8. O-O {[%clk
0:02:58.9]} 8... Bb7 {[%clk 0:02:56.6]} 9. Nxc6 {[%clk 0:02:56.3]} 9... Qxc6
{[%clk 0:02:48.1]} 10. Bxc5 {[%clk 0:02:44.4]} 10... bxc5 {[%clk 0:02:49]} 11.
Re1 {[%clk 0:02:37.5]} 11... O-O {[%clk 0:02:47.9]} 12. Nd2 {[%clk 0:02:32.7]}
12... Rad8 {[%clk 0:02:47.7]} 13. Qc2 {[%clk 0:02:31.4]} 13... Qg6 {[%clk
0:02:38.5]} 14. Re3 {[%clk 0:01:18.1]} 14... Qh6 {[%clk 0:02:14.4]} 15. Rh3
{[%clk 0:01:11.9]} 15... Qg6 {[%clk 0:02:13.5]} 16. Rg3 {[%clk 0:01:12]} 16...
Qc6 {[%clk 0:02:08.9]} 17. Re1 {[%clk 0:01:03.8]} 17... d6 {[%clk 0:02:01.5]}
18. Nf1 {[%clk 0:00:56.1]} 18... Ng6 {[%clk 0:01:56.9]} 19. Rd3 {[%clk
0:00:38.7]} 19... Ne5 {[%clk 0:01:51.9]} 20. Bd5 {[%clk 0:00:38.7]} 20... Qb6
{[%clk 0:01:52.1]} 21. Rdd1 {[%clk 0:00:34.8]} 21... c6 {[%clk 0:01:39.1]} 22.
Bb3 {[%clk 0:00:34.3]} 22... c4 {[%clk 0:01:39.5]} 23. Ba4 {[%clk 0:00:34.5]}
23... Nd3 {[%clk 0:01:35.8]} 24. Re3 {[%clk 0:00:31.3]} 24... Qxb2 {[%clk
0:01:34.9]} 25. Rexd3 {[%clk 0:00:17.6]} 25... Qxc2 {[%clk 0:01:34.6]} 26. Bxc2
{[%clk 0:00:18.5]} 26... cxd3 {[%clk 0:01:34.8]} 27. Bxd3 {[%clk 0:00:19.4]}
27... Rfe8 {[%clk 0:01:33.1]} 28. Ne3 {[%clk 0:00:18.4]} 28... c5 {[%clk
0:01:26.7]} 29. f3 {[%clk 0:00:17.4]} 29... d5 {[%clk 0:01:26.4]} 30. Bb5 {[%clk
0:00:16.8]} 30... Re5 {[%clk 0:01:18.7]} 31. c4 {[%clk 0:00:12.1]} 31... d4
{[%clk 0:01:16.9]} 32. Nf5 {[%clk 0:00:12.8]} 32... g6 {[%clk 0:01:14.3]} 33.
Nh6+ {[%clk 0:00:11.4]} 33... Kg7 {[%clk 0:01:14.6]} 34. Ng4 {[%clk 0:00:12.3]}
34... Re7 {[%clk 0:01:14.8]} 35. Nf2 {[%clk 0:00:12.5]} 35... Rb8 {[%clk
0:01:09.4]} 36. Nd3 {[%clk 0:00:12.7]} 36... Rc7 {[%clk 0:01:10]} 37. Kf2 {[%clk
0:00:02.6]} 37... Bc8 {[%clk 0:01:09.8]} 38. Rd2 {[%clk 0:00:02.6]} 38... Be6
{[%clk 0:01:08]} 39. Ba6 {[%clk 0:00:01.3]} 39... Rb6 {[%clk 0:01:07.2]} 40. Bb5
{[%clk 0:00:01.5]} 40... a6 {[%clk 0:01:07.4]} 41. Ba4 {[%clk 0:00:01.8]} 41...
Bxc4 {[%clk 0:01:07.6]} 0-1